[Event "*** Titled Tuesday Blitz"]
[Site "Chess.com"]
[Date "2020.05.05"]
[Round "7"]
[White "canary2016"]
[Black "WiktoriaPOL"]
[Result "0-1"]
[WhiteElo "1908"]
[BlackElo "2038"]
[TimeControl "180+1"]
[EndTime "11:19:43 PDT"]
[Termination "WiktoriaPOL won by checkmate"]

1. Nf3 {[%clk 0:03:00.9]} 1... Nf6 {[%clk 0:02:57.5]} 2. g3 {[%clk 0:03:00.1]}
2... g6 {[%clk 0:02:56.7]} 3. Bg2 {[%clk 0:03:00.1]} 3... Bg7 {[%clk 0:02:56.1]}
4. O-O {[%clk 0:03:00]} 4... O-O {[%clk 0:02:55.9]} 5. d4 {[%clk 0:03:00]} 5...
d6 {[%clk 0:02:55]} 6. c4 {[%clk 0:02:59.8]} 6... Nbd7 {[%clk 0:02:54.1]} 7. Nc3
{[%clk 0:02:59.8]} 7... e5 {[%clk 0:02:53.3]} 8. e4 {[%clk 0:02:59.5]} 8... Qe7
{[%clk 0:02:43.2]} 9. Re1 {[%clk 0:02:57.8]} 9... exd4 {[%clk 0:02:38.8]} 10.
Nxd4 {[%clk 0:02:56.9]} 10... a5 {[%clk 0:02:22.3]} 11. Be3 {[%clk 0:02:52.6]}
11... Nc5 {[%clk 0:02:13.9]} 12. Qc2 {[%clk 0:02:50.9]} 12... Bd7 {[%clk
0:01:52.3]} 13. Rad1 {[%clk 0:02:48.5]} 13... a4 {[%clk 0:01:46.4]} 14. Nd5
{[%clk 0:02:47.3]} 14... Nxd5 {[%clk 0:01:42.2]} 15. exd5 {[%clk 0:02:46.6]}
15... Qf6 {[%clk 0:01:13.1]} 16. Qd2 {[%clk 0:02:36]} 16... Rfe8 {[%clk
0:01:05.6]} 17. Rf1 {[%clk 0:02:24.2]} 17... Ne4 {[%clk 0:01:01.1]} 18. Qc2
{[%clk 0:02:16.5]} 18... Bf5 {[%clk 0:00:55.1]} 19. Nxf5 {[%clk 0:02:14.9]}
19... Qxf5 {[%clk 0:00:55.1]} 20. Bf4 {[%clk 0:01:56.7]} 20... Nxg3 {[%clk
0:00:50.4]} 21. Qxf5 {[%clk 0:01:46.2]} 21... Nxf5 {[%clk 0:00:51.3]} 22. Rd2
{[%clk 0:01:45]} 22... Re7 {[%clk 0:00:45.8]} 23. Bh3 {[%clk 0:01:39.8]} 23...
Nd4 {[%clk 0:00:41.3]} 24. Bg2 {[%clk 0:01:33.7]} 24... Ne2+ {[%clk 0:00:39.9]}
25. Kh1 {[%clk 0:01:32.7]} 25... Nxf4 {[%clk 0:00:39.6]} 26. Bf3 {[%clk
0:01:30.3]} 26... Rae8 {[%clk 0:00:38.8]} 27. Rdd1 {[%clk 0:01:24.5]} 27... Bxb2
{[%clk 0:00:37]} 28. Rb1 {[%clk 0:01:22.6]} 28... a3 {[%clk 0:00:35.6]} 29. Bg4
{[%clk 0:01:06]} 29... f5 {[%clk 0:00:34.3]} 30. Bf3 {[%clk 0:01:05.4]} 30...
Nd3 {[%clk 0:00:31.1]} 31. Rbd1 {[%clk 0:01:02.5]} 31... Re1 {[%clk 0:00:24.2]}
32. Kg2 {[%clk 0:00:56.3]} 32... Rxf1 {[%clk 0:00:20.1]} 33. Kxf1 {[%clk
0:00:54.8]} 33... Nb4 {[%clk 0:00:20]} 34. c5 {[%clk 0:00:50.9]} 34... dxc5
{[%clk 0:00:19.3]} 35. d6 {[%clk 0:00:50.6]} 35... cxd6 {[%clk 0:00:19.3]} 36.
Rxd6 {[%clk 0:00:50.3]} 36... Nxa2 {[%clk 0:00:18.9]} 37. Bd5+ {[%clk
0:00:49.7]} 37... Kg7 {[%clk 0:00:18.5]} 38. Bxa2 {[%clk 0:00:49.4]} 38... b5
{[%clk 0:00:12]} 39. Rd7+ {[%clk 0:00:47.1]} 39... Kh6 {[%clk 0:00:11.3]} 40.
Rd5 {[%clk 0:00:44.5]} 40... Rc8 {[%clk 0:00:10.2]} 41. Rd3 {[%clk 0:00:35.1]}
41... c4 {[%clk 0:00:09.2]} 42. Rh3+ {[%clk 0:00:34.6]} 42... Kg7 {[%clk
0:00:08.8]} 43. Re3 {[%clk 0:00:33.7]} 43... b4 {[%clk 0:00:09.1]} 44. Re7+
{[%clk 0:00:32.9]} 44... Kf6 {[%clk 0:00:09.7]} 45. Rxh7 {[%clk 0:00:32.1]}
45... b3 {[%clk 0:00:09.9]} 46. Bb1 {[%clk 0:00:31]} 46... a2 {[%clk 0:00:09.5]}
47. Bxa2 {[%clk 0:00:13.4]} 47... bxa2 {[%clk 0:00:10.4]} 48. Rb7 {[%clk
0:00:11.3]} 48... a1=Q+ {[%clk 0:00:10.3]} 49. Kg2 {[%clk 0:00:10.6]} 49... Re8
{[%clk 0:00:10.2]} 50. Rb6+ {[%clk 0:00:10.3]} 50... Kg7 {[%clk 0:00:09.8]} 51.
Rb7+ {[%clk 0:00:10.3]} 51... Kh6 {[%clk 0:00:10.1]} 52. Rb6 {[%clk 0:00:07.4]}
52... Re1 {[%clk 0:00:10]} 53. Rxg6+ {[%clk 0:00:06.3]} 53... Kxg6 {[%clk
0:00:09.6]} 54. Kh3 {[%clk 0:00:06.2]} 54... Qa3+ {[%clk 0:00:09.1]} 55. Kh4
{[%clk 0:00:05.3]} 55... Qf8 {[%clk 0:00:07.6]} 56. Kg3 {[%clk 0:00:03.7]} 56...
Rg1+ {[%clk 0:00:07.8]} 57. Kf3 {[%clk 0:00:03.3]} 57... Qe7 {[%clk 0:00:07.8]}
58. Kf4 {[%clk 0:00:02.4]} 58... Qe4# {[%clk 0:00:08]} 0-1

[Event "*** Titled Tuesday Blitz"]
[Site "Chess.com"]
[Date "2020.05.05"]
[Round "7"]
[White "blitzking1729"]
[Black "Thjop"]
[Result "1-0"]
[WhiteElo "2516"]
[BlackElo "2649"]
[TimeControl "180+1"]
[EndTime "11:19:45 PDT"]
[Termination "blitzking1729 won by resignation"]

1. d4 {[%clk 0:03:00.9]} 1... Nf6 {[%clk 0:02:57.3]} 2. c4 {[%clk 0:03:00.7]}
2... g6 {[%clk 0:02:54.4]} 3. Nc3 {[%clk 0:03:00.3]} 3... Bg7 {[%clk 0:02:44.3]}
4. e4 {[%clk 0:03:00.1]} 4... d6 {[%clk 0:02:44.6]} 5. h3 {[%clk 0:03:00]} 5...
O-O {[%clk 0:02:44.1]} 6. Be3 {[%clk 0:03:00]} 6... Na6 {[%clk 0:02:40.3]} 7.
Bd3 {[%clk 0:02:58.5]} 7... c5 {[%clk 0:02:40.2]} 8. Nf3 {[%clk 0:02:56.5]} 8...
cxd4 {[%clk 0:02:36.6]} 9. Nxd4 {[%clk 0:02:56.5]} 9... Nc5 {[%clk 0:02:36.7]}
10. Bc2 {[%clk 0:02:56.1]} 10... b6 {[%clk 0:02:34.1]} 11. O-O {[%clk
0:02:52.8]} 11... Bb7 {[%clk 0:02:33.9]} 12. f3 {[%clk 0:02:51.8]} 12... a6
{[%clk 0:02:32.1]} 13. Qd2 {[%clk 0:02:48.5]} 13... Rc8 {[%clk 0:02:15.2]} 14.
Rac1 {[%clk 0:02:45.4]} 14... h5 {[%clk 0:02:13.3]} 15. Rfd1 {[%clk 0:02:44.6]}
15... Ne6 {[%clk 0:02:04.8]} 16. Nxe6 {[%clk 0:02:43.7]} 16... fxe6 {[%clk
0:02:04.7]} 17. Bh6 {[%clk 0:02:43.4]} 17... e5 {[%clk 0:01:59.4]} 18. Nd5
{[%clk 0:02:36.6]} 18... Bxd5 {[%clk 0:01:56.4]} 19. exd5 {[%clk 0:02:32.3]}
19... Kh7 {[%clk 0:01:42.9]} 20. Be3 {[%clk 0:02:19]} 20... Nd7 {[%clk
0:01:34.9]} 21. Qd3 {[%clk 0:02:10.1]} 21... Qe8 {[%clk 0:01:34.6]} 22. b4
{[%clk 0:02:09.3]} 22... a5 {[%clk 0:01:30.9]} 23. a3 {[%clk 0:02:08]} 23... Bh6
{[%clk 0:01:24.6]} 24. Bxh6 {[%clk 0:02:02.3]} 24... Kxh6 {[%clk 0:01:25.5]} 25.
Ba4 {[%clk 0:01:59.4]} 25... Rc7 {[%clk 0:01:17.8]} 26. Qe3+ {[%clk 0:01:55.7]}
26... Kg7 {[%clk 0:01:14.1]} 27. Bxd7 {[%clk 0:01:50.8]} 27... Qxd7 {[%clk
0:01:11]} 28. Qxb6 {[%clk 0:01:50.2]} 28... axb4 {[%clk 0:00:37.6]} 29. axb4
{[%clk 0:01:47.1]} 29... Rfc8 {[%clk 0:00:37.4]} 30. c5 {[%clk 0:01:43.3]} 30...
Rb7 {[%clk 0:00:37.2]} 31. Qa5 {[%clk 0:00:35.5]} 31... Ra7 {[%clk 0:00:36.4]}
32. c6 {[%clk 0:00:32.3]} 32... Qc7 {[%clk 0:00:07.3]} 33. Qxc7 {[%clk
0:00:30.6]} 33... Raxc7 {[%clk 0:00:08.2]} 34. b5 {[%clk 0:00:28.6]} 34... Rb8
{[%clk 0:00:08.7]} 35. Rb1 {[%clk 0:00:28]} 35... Rb6 {[%clk 0:00:08.8]} 36. Rd3
{[%clk 0:00:26.1]} 36... Kf6 {[%clk 0:00:04.5]} 37. Ra3 {[%clk 0:00:25]} 37...
e6 {[%clk 0:00:04.6]} 38. Ra6 {[%clk 0:00:24.8]} 38... Rxa6 {[%clk 0:00:04.9]}
39. bxa6 {[%clk 0:00:24.8]} 39... exd5 {[%clk 0:00:04.8]} 40. Ra1 {[%clk
0:00:23.2]} 40... Ra7 {[%clk 0:00:01.9]} 41. c7 {[%clk 0:00:23.5]} 41... Rxc7
{[%clk 0:00:02.3]} 42. a7 {[%clk 0:00:23.9]} 42... Rxa7 {[%clk 0:00:02.8]} 43.
Rxa7 {[%clk 0:00:24.3]} 43... d4 {[%clk 0:00:03.7]} 44. Kf2 {[%clk 0:00:24.7]}
44... g5 {[%clk 0:00:04]} 45. Ke2 {[%clk 0:00:21.4]} 45... d5 {[%clk 0:00:03.5]}
46. Kd3 {[%clk 0:00:21.1]} 46... Kf5 {[%clk 0:00:03.4]} 47. Rf7+ {[%clk
0:00:20.5]} 47... Ke6 {[%clk 0:00:03.8]} 48. Rh7 {[%clk 0:00:20.5]} 48... h4
{[%clk 0:00:03.9]} 49. Rg7 {[%clk 0:00:20.5]} 49... Kf6 {[%clk 0:00:03.8]} 50.
Rd7 {[%clk 0:00:20.5]} 50... Ke6 {[%clk 0:00:04.1]} 51. Ra7 {[%clk 0:00:20.6]}
51... Kf6 {[%clk 0:00:04.3]} 52. Ra6+ {[%clk 0:00:20.8]} 52... Kf5 {[%clk
0:00:04.5]} 53. Rb6 {[%clk 0:00:20.8]} 53... Kf4 {[%clk 0:00:03.5]} 54. Rd6
{[%clk 0:00:20.5]} 54... e4+ {[%clk 0:00:02.8]} 55. fxe4 {[%clk 0:00:19.7]}
55... dxe4+ {[%clk 0:00:03.7]} 56. Kxd4 {[%clk 0:00:20.2]} 56... Kg3 {[%clk
0:00:03.9]} 57. Kxe4 {[%clk 0:00:20.1]} 57... Kxg2 {[%clk 0:00:04.8]} 58. Rd3
{[%clk 0:00:20]} 58... g4 {[%clk 0:00:03.1]} 59. hxg4 {[%clk 0:00:20.4]} 59...
h3 {[%clk 0:00:04]} 60. g5 {[%clk 0:00:20.5]} 60... h2 {[%clk 0:00:02.5]} 61.
Rd2+ {[%clk 0:00:20.7]} 61... Kg3 {[%clk 0:00:03.4]} 62. Rxh2 {[%clk 0:00:20.9]}
1-0

[Event "*** Titled Tuesday Blitz"]
[Site "Chess.com"]
[Date "2020.05.05"]
[Round "7"]
[White "GM_LOADING"]
[Black "ozates"]
[Result "1/2-1/2"]
[WhiteElo "2528"]
[BlackElo "2391"]
[TimeControl "180+1"]
[EndTime "11:19:45 PDT"]
[Termination "Game drawn by repetition"]

1. e4 {[%clk 0:03:00.9]} 1... c5 {[%clk 0:03:00]} 2. Nf3 {[%clk 0:03:00.8]} 2...
Nc6 {[%clk 0:02:59.8]} 3. d4 {[%clk 0:03:01.4]} 3... cxd4 {[%clk 0:03:00.7]} 4.
Nxd4 {[%clk 0:03:01.8]} 4... e5 {[%clk 0:03:01.4]} 5. Nb5 {[%clk 0:03:01.7]}
5... d6 {[%clk 0:03:01.6]} 6. c4 {[%clk 0:03:02]} 6... a6 {[%clk 0:03:01.9]} 7.
N5c3 {[%clk 0:03:02.1]} 7... Be7 {[%clk 0:03:02.2]} 8. Nd5 {[%clk 0:03:02.4]}
8... Nf6 {[%clk 0:03:02.5]} 9. Nbc3 {[%clk 0:03:01.4]} 9... Nxd5 {[%clk
0:02:56.1]} 10. Nxd5 {[%clk 0:03:00]} 10... O-O {[%clk 0:02:51.2]} 11. Be3
{[%clk 0:02:58.4]} 11... Rb8 {[%clk 0:02:50.4]} 12. Qd2 {[%clk 0:02:55.3]} 12...
Be6 {[%clk 0:02:48.4]} 13. Be2 {[%clk 0:02:54.6]} 13... b5 {[%clk 0:02:30.5]}
14. cxb5 {[%clk 0:02:53.5]} 14... axb5 {[%clk 0:02:30.3]} 15. O-O {[%clk
0:02:54.1]} 15... Qd7 {[%clk 0:02:22.5]} 16. Rac1 {[%clk 0:02:49]} 16... Rfe8
{[%clk 0:02:00.4]} 17. Rfd1 {[%clk 0:02:39.4]} 17... Bf8 {[%clk 0:01:56.3]} 18.
Nb6 {[%clk 0:02:34]} 18... Rxb6 {[%clk 0:01:27.3]} 19. Bxb6 {[%clk 0:02:34.9]}
19... Ne7 {[%clk 0:01:19.4]} 20. Qxd6 {[%clk 0:02:29]} 20... Qb7 {[%clk
0:01:17.1]} 21. Bxb5 {[%clk 0:02:19.9]} 21... Rb8 {[%clk 0:01:09.5]} 22. Bc7
{[%clk 0:02:12.5]} 22... Nd5 {[%clk 0:00:57.7]} 23. exd5 {[%clk 0:01:10.9]}
23... Bxd6 {[%clk 0:00:53.7]} 24. Bxb8 {[%clk 0:01:10.8]} 24... Qxb8 {[%clk
0:00:33.4]} 25. dxe6 {[%clk 0:01:10.8]} 25... fxe6 {[%clk 0:00:34.3]} 26. Bc4
{[%clk 0:01:03.4]} 26... Kf7 {[%clk 0:00:27.9]} 27. b3 {[%clk 0:00:53.8]} 27...
Ba3 {[%clk 0:00:26.8]} 28. Rc2 {[%clk 0:00:52]} 28... Kf6 {[%clk 0:00:23.5]} 29.
Rcd2 {[%clk 0:00:49.6]} 29... Bc5 {[%clk 0:00:20.6]} 30. a4 {[%clk 0:00:43.5]}
30... Bd4 {[%clk 0:00:20.2]} 31. a5 {[%clk 0:00:40.7]} 31... Qa7 {[%clk
0:00:19.7]} 32. a6 {[%clk 0:00:40.2]} 32... g5 {[%clk 0:00:18.5]} 33. b4 {[%clk
0:00:33.3]} 33... h5 {[%clk 0:00:18.4]} 34. b5 {[%clk 0:00:33.1]} 34... g4
{[%clk 0:00:18.9]} 35. g3 {[%clk 0:00:26.1]} 35... Kf5 {[%clk 0:00:17.7]} 36.
Re2 {[%clk 0:00:24.1]} 36... Kf6 {[%clk 0:00:17]} 37. Rde1 {[%clk 0:00:23]}
37... Qb6 {[%clk 0:00:16.5]} 38. Ra2 {[%clk 0:00:21.1]} 38... Qa7 {[%clk
0:00:16.4]} 39. Rb1 {[%clk 0:00:20.3]} 39... Bb6 {[%clk 0:00:16.9]} 40. Rd1
{[%clk 0:00:19.6]} 40... Bd4 {[%clk 0:00:17.2]} 41. Rxd4 {[%clk 0:00:16.9]}
41... exd4 {[%clk 0:00:17.1]} 42. Rb2 {[%clk 0:00:16.3]} 42... Qb6 {[%clk
0:00:16.8]} 43. Ra2 {[%clk 0:00:16.7]} 43... Qa7 {[%clk 0:00:17.1]} 44. b6
{[%clk 0:00:17.1]} 44... Qxb6 {[%clk 0:00:17.4]} 45. a7 {[%clk 0:00:17.2]} 45...
Qb1+ {[%clk 0:00:17.9]} 46. Kg2 {[%clk 0:00:17.7]} 46... Qb7+ {[%clk 0:00:17.9]}
47. Kf1 {[%clk 0:00:15.2]} 47... Qb1+ {[%clk 0:00:16.8]} 48. Ke2 {[%clk
0:00:15.1]} 48... d3+ {[%clk 0:00:17]} 49. Ke3 {[%clk 0:00:13.8]} 49... Qc1+
{[%clk 0:00:13.5]} 50. Kxd3 {[%clk 0:00:13.4]} 50... Qd1+ {[%clk 0:00:13.7]} 51.
Kc3 {[%clk 0:00:13.4]} 51... Qc1+ {[%clk 0:00:13.9]} 52. Kb4 {[%clk 0:00:13.2]}
52... Qb1+ {[%clk 0:00:13.3]} 53. Ka5 {[%clk 0:00:09.6]} 53... Qb7 {[%clk
0:00:12.6]} 54. Re2 {[%clk 0:00:09.2]} 54... Qxa7+ {[%clk 0:00:12.7]} 55. Kb4
{[%clk 0:00:09.6]} 55... Qb6+ {[%clk 0:00:12.9]} 56. Kc3 {[%clk 0:00:10.1]}
56... e5 {[%clk 0:00:13.1]} 57. Rb2 {[%clk 0:00:08.8]} 57... Qd4+ {[%clk
0:00:12.9]} 58. Kb3 {[%clk 0:00:09.3]} 58... Qb6+ {[%clk 0:00:12.7]} 59. Kc3
{[%clk 0:00:09.5]} 59... Qd4+ {[%clk 0:00:12.9]} 60. Kb3 {[%clk 0:00:09.6]}
60... Qb6+ {[%clk 0:00:13]} 61. Kc3 {[%clk 0:00:10.1]} 1/2-1/2

[Event "*** Titled Tuesday Blitz"]
[Site "Chess.com"]
[Date "2020.05.05"]
[Round "7"]
[White "queen_iryna"]
[Black "Margarita2907"]
[Result "1-0"]
[WhiteElo "2297"]
[BlackElo "1989"]
[TimeControl "180+1"]
[EndTime "11:19:45 PDT"]
[Termination "queen_iryna won on time"]

1. d4 {[%clk 0:03:00.9]} 1... Nf6 {[%clk 0:02:58.5]} 2. Bg5 {[%clk 0:03:00.1]}
2... e6 {[%clk 0:02:57.3]} 3. Nc3 {[%clk 0:02:58.8]} 3... Be7 {[%clk 0:02:54.6]}
4. Bxf6 {[%clk 0:02:51.8]} 4... Bxf6 {[%clk 0:02:52.3]} 5. e4 {[%clk 0:02:52.7]}
5... O-O {[%clk 0:02:49.2]} 6. e5 {[%clk 0:02:50.6]} 6... Be7 {[%clk 0:02:46.4]}
7. Bd3 {[%clk 0:02:50.1]} 7... c5 {[%clk 0:02:43.8]} 8. Nf3 {[%clk 0:02:47.9]}
8... cxd4 {[%clk 0:02:40.8]} 9. Nxd4 {[%clk 0:02:47.6]} 9... Nc6 {[%clk
0:02:40.7]} 10. Nxc6 {[%clk 0:02:45.6]} 10... dxc6 {[%clk 0:02:31.1]} 11. O-O
{[%clk 0:02:36.9]} 11... c5 {[%clk 0:02:28.8]} 12. f4 {[%clk 0:02:01.2]} 12...
g6 {[%clk 0:02:24.1]} 13. Ne4 {[%clk 0:01:57.9]} 13... b6 {[%clk 0:02:18]} 14.
Qf3 {[%clk 0:01:50.8]} 14... Bb7 {[%clk 0:02:10.5]} 15. Nf6+ {[%clk 0:01:39.1]}
15... Bxf6 {[%clk 0:02:00]} 16. Qxb7 {[%clk 0:01:40]} 16... Bg7 {[%clk
0:01:48.7]} 17. Qe4 {[%clk 0:01:28.3]} 17... Qd4+ {[%clk 0:01:45.1]} 18. Qxd4
{[%clk 0:01:28.2]} 18... cxd4 {[%clk 0:01:42.1]} 19. Rad1 {[%clk 0:01:29.1]}
19... Rfd8 {[%clk 0:01:33.2]} 20. Kf2 {[%clk 0:01:28.3]} 20... Rac8 {[%clk
0:01:22.9]} 21. Kf3 {[%clk 0:01:28.2]} 21... f6 {[%clk 0:01:14]} 22. exf6 {[%clk
0:01:23.1]} 22... Bxf6 {[%clk 0:01:09.4]} 23. Rfe1 {[%clk 0:01:24]} 23... Kf7
{[%clk 0:01:04.4]} 24. Re2 {[%clk 0:01:23.3]} 24... Re8 {[%clk 0:00:54.8]} 25.
b3 {[%clk 0:01:20.8]} 25... e5 {[%clk 0:00:46.3]} 26. Bc4+ {[%clk 0:01:04.8]}
26... Kg7 {[%clk 0:00:45]} 27. Rde1 {[%clk 0:01:00.3]} 27... Rc5 {[%clk
0:00:30.2]} 28. Re4 {[%clk 0:00:48.8]} 28... Kf8 {[%clk 0:00:23.5]} 29. a4
{[%clk 0:00:46.3]} 29... Re7 {[%clk 0:00:18.7]} 30. R1e2 {[%clk 0:00:31.6]}
30... exf4 {[%clk 0:00:18.5]} 31. Rxf4 {[%clk 0:00:30]} 31... Rc6 {[%clk
0:00:12.6]} 32. Ree4 {[%clk 0:00:21]} 32... Rxe4 {[%clk 0:00:12]} 33. Rxe4
{[%clk 0:00:20.9]} 33... Kg7 {[%clk 0:00:10.2]} 34. Ke2 {[%clk 0:00:20.5]} 34...
Rc5 {[%clk 0:00:09.5]} 35. Kd3 {[%clk 0:00:20.6]} 35... Rg5 {[%clk 0:00:07.4]}
36. Re2 {[%clk 0:00:20.1]} 36... Rf5 {[%clk 0:00:07.6]} 37. b4 {[%clk
0:00:18.5]} 37... Rf1 {[%clk 0:00:07.9]} 38. h3 {[%clk 0:00:17.6]} 38... Rd1+
{[%clk 0:00:08.4]} 39. Rd2 {[%clk 0:00:17.9]} 39... Rb1 {[%clk 0:00:08]} 40. Bb3
{[%clk 0:00:16.3]} 40... Ra1 {[%clk 0:00:07.6]} 41. Re2 {[%clk 0:00:14.9]} 41...
Rd1+ {[%clk 0:00:07.5]} 42. Ke4 {[%clk 0:00:14.9]} 42... Ra1 {[%clk 0:00:05.3]}
43. Kd5 {[%clk 0:00:14.5]} 43... Rd1 {[%clk 0:00:04.8]} 44. Kc4 {[%clk 0:00:13]}
44... Ra1 {[%clk 0:00:04.2]} 45. Kb5 {[%clk 0:00:12.9]} 45... Rd1 {[%clk
0:00:03.5]} 46. Bc4 {[%clk 0:00:12.8]} 46... Ra1 {[%clk 0:00:01.9]} 47. Bd3
{[%clk 0:00:11.6]} 1-0

[Event "*** Titled Tuesday Blitz"]
[Site "Chess.com"]
[Date "2020.05.05"]
[Round "7"]
[White "Gahan-MG"]
[Black "Sychev_Klementy"]
[Result "0-1"]
[WhiteElo "2600"]
[BlackElo "2880"]
[TimeControl "180+1"]
[EndTime "11:19:46 PDT"]
[Termination "Sychev_Klementy won by resignation"]

1. e4 {[%clk 0:03:00.9]} 1... e5 {[%clk 0:02:54.7]} 2. Nf3 {[%clk 0:03:00.7]}
2... Nc6 {[%clk 0:02:50.9]} 3. d4 {[%clk 0:03:01.1]} 3... exd4 {[%clk
0:02:50.2]} 4. Nxd4 {[%clk 0:03:02]} 4... Nf6 {[%clk 0:02:49.4]} 5. Nc3 {[%clk
0:03:02]} 5... Bb4 {[%clk 0:02:47.1]} 6. Nxc6 {[%clk 0:03:02.4]} 6... bxc6
{[%clk 0:02:47]} 7. Bd3 {[%clk 0:03:03.3]} 7... d5 {[%clk 0:02:46]} 8. exd5
{[%clk 0:03:04.2]} 8... O-O {[%clk 0:02:45.7]} 9. O-O {[%clk 0:03:05.1]} 9...
cxd5 {[%clk 0:02:42.1]} 10. Bg5 {[%clk 0:03:04.6]} 10... c6 {[%clk 0:02:41.9]}
11. Qf3 {[%clk 0:03:04.1]} 11... h6 {[%clk 0:02:40.4]} 12. Bxf6 {[%clk 0:03:04]}
12... Qxf6 {[%clk 0:02:39.7]} 13. Qxf6 {[%clk 0:03:04.6]} 13... gxf6 {[%clk
0:02:39.9]} 14. Ne2 {[%clk 0:03:05.5]} 14... Rb8 {[%clk 0:02:39.1]} 15. Ng3
{[%clk 0:03:03.1]} 15... Bd6 {[%clk 0:02:33.2]} 16. b3 {[%clk 0:02:59.1]} 16...
Re8 {[%clk 0:02:33.6]} 17. Rae1 {[%clk 0:02:55.8]} 17... Bd7 {[%clk 0:02:28.7]}
18. Nh5 {[%clk 0:02:55.6]} 18... Be7 {[%clk 0:01:43.9]} 19. Re3 {[%clk 0:02:54]}
19... Kf8 {[%clk 0:01:39.7]} 20. Rfe1 {[%clk 0:02:40.9]} 20... Bd8 {[%clk
0:01:34.4]} 21. Rxe8+ {[%clk 0:02:34.1]} 21... Bxe8 {[%clk 0:01:33.5]} 22. g4
{[%clk 0:02:19.1]} 22... c5 {[%clk 0:01:24.9]} 23. c4 {[%clk 0:02:02]} 23... d4
{[%clk 0:01:20]} 24. Ng3 {[%clk 0:01:53.4]} 24... Bd7 {[%clk 0:01:17.2]} 25. h3
{[%clk 0:01:50.8]} 25... a5 {[%clk 0:01:16]} 26. Ne4 {[%clk 0:01:41.4]} 26...
Be7 {[%clk 0:01:13.6]} 27. Kg2 {[%clk 0:01:35.3]} 27... a4 {[%clk 0:01:11.9]}
28. Bc2 {[%clk 0:01:35.5]} 28... Rb6 {[%clk 0:00:29.7]} 29. Nd2 {[%clk
0:01:26.8]} 29... Bc6+ {[%clk 0:00:26.8]} 30. Be4 {[%clk 0:01:24.2]} 30... Bd7
{[%clk 0:00:23.7]} 31. Bd5 {[%clk 0:01:17.2]} 31... f5 {[%clk 0:00:20.5]} 32.
Kg3 {[%clk 0:01:04.2]} 32... fxg4 {[%clk 0:00:16.5]} 33. hxg4 {[%clk 0:01:05.1]}
33... Rg6 {[%clk 0:00:16.7]} 34. f3 {[%clk 0:01:04.1]} 34... h5 {[%clk 0:00:17]}
35. Re4 {[%clk 0:00:38.5]} 35... hxg4 {[%clk 0:00:16.3]} 36. fxg4 {[%clk
0:00:38]} 36... f5 {[%clk 0:00:16.5]} 37. Re2 {[%clk 0:00:29.3]} 37... Rxg4+
{[%clk 0:00:14.8]} 38. Kf3 {[%clk 0:00:29.3]} 38... Bd6 {[%clk 0:00:14.5]} 39.
Rg2 {[%clk 0:00:26.4]} 39... Bc7 {[%clk 0:00:14.3]} 40. Rxg4 {[%clk 0:00:20.4]}
40... fxg4+ {[%clk 0:00:14.1]} 41. Kg2 {[%clk 0:00:20.9]} 41... Ke7 {[%clk
0:00:12.3]} 42. Ne4 {[%clk 0:00:19.3]} 42... Bb6 {[%clk 0:00:12]} 43. Kg3 {[%clk
0:00:19.1]} 43... a3 {[%clk 0:00:11.6]} 44. Nd2 {[%clk 0:00:18.5]} 44... Bc7+
{[%clk 0:00:10.8]} 45. Kg2 {[%clk 0:00:18.7]} 45... Bf4 {[%clk 0:00:10.3]} 46.
Ne4 {[%clk 0:00:17.7]} 46... d3 {[%clk 0:00:10.6]} 47. Kf2 {[%clk 0:00:12.9]}
47... Bf5 {[%clk 0:00:10.1]} 48. Ke1 {[%clk 0:00:08.9]} 48... g3 {[%clk
0:00:09.3]} 49. Nxc5 {[%clk 0:00:06.5]} 49... d2+ {[%clk 0:00:09.4]} 50. Ke2
{[%clk 0:00:05.7]} 50... Bg4+ {[%clk 0:00:09.4]} 51. Bf3 {[%clk 0:00:04.9]}
51... Bxf3+ {[%clk 0:00:09.8]} 52. Kxf3 {[%clk 0:00:05.8]} 52... d1=Q+ {[%clk
0:00:09.9]} 53. Kxf4 {[%clk 0:00:06.7]} 53... Qd6+ {[%clk 0:00:09.7]} 0-1